Cogmind - Beta 15 @@@ ROGUE MODE // 2025.06.28 @ 17:48:26 Player: saltine Result: Destroyed by G-50 Soldier with Heavy Laser Performance ------------- Evolutions (5) 2500 Regions Visited (16) 3200 Robots Destroyed (227) 1135 Value Destroyed (8125) 8125 Prototype IDs (39) 780 Alien Tech Used (0) 0 Bonus (3075) 3075 TOTAL SCORE: 18815 Bonus ------- High Alert Combat Kills 399 Follower Combat Kills 153 Entered Garrisons 400 Used RIF Installer 1500 Entered DSFs 500 Aligned with FarCom 300 Friendly Fire -177 Cogmind --------- Core Integrity 0/1000 Matter 269/300 Energy 21/100 System Corruption 13% Temperature Cool (9) Movement Core (50) Location -5/Factory Parts ------- > --- POWER (1) -------- (None) > --- PROPULSION (4) --- (None) > --- UTILITY (10) ----- Hacking Suite Authchip [R/Combat] Authchip [R/Combat] Authchip [R/Combat] Authchip [R/Combat] Authchip [R/Combat] > --- WEAPON (2) ------- (None) > --- INVENTORY (5) ---- Authchip [R/Combat] Authchip [R/Combat] Authchip [R/Combat] Heavy Phase Cannon Antimatter Cannon Peak State ------------ > --- POWER ------------ Improved Ion Engine > --- PROPULSION ------- Enhanced Flexi-carbon Leg Enhanced Flexi-carbon Leg Nuclear Pulse Array > --- UTILITY ---------- Authchip [R/Combat] Authchip [R/Combat] Authchip [R/Combat] Authchip [R/Combat] Authchip [R/Combat] Authchip [R/Combat] Authchip [R/Combat] Authchip [R/Combat] Authchip [R/Combat] Authchip [R/Combat] > --- WEAPON ----------- Antimatter Cannon Scythe > --- INVENTORY -------- Authchip [R/Combat] Authchip [R/Combat] Authchip [R/Combat] Heavy Plasma Cannon Mini Grenade Launcher [Rating: 78] Favorites ----------- Power Heavy Ion Engine Engine Heavy Ion Engine Power Core Micro Nuclear Core Reactor Light Antimatter Reactor Propulsion Light Treads Treads Light Treads Leg Enhanced Flexi-carbon Leg Wheel Armored Huge Wheel Flight Unit Flying Fortress v7 Utility Huge Storage Unit Device Cooling System Storage Huge Storage Unit Processor Advanced Targeting Computer Hackware Authchip [R/Combat] Protection Light Armor Plating Weapon Assault Cannon Energy Gun Medium Laser Energy Cannon Advanced Beam Cannon Ballistic Gun Improved Assault Rifle Ballistic Cannon Assault Cannon Launcher Mini Grenade Launcher Special Weapon Improved Remote Datajack Impact Weapon Makeshift Hammer Slashing Weapon Scythe Special Melee Weapon Improved Datajack Build | -11 -10 -10 -9 -9 -9 -8 -8 -8 -8 -7 -7 -7 -7 -6 -6 -5 ------- Run | Yrd Mat Min Mat Min Exi Min Mat Gar Mat Fac Was Fac Gar Fac DSF Fac Slots Evolved 10 | . . . 2 . . . 2 . . 2 . . . 2 . 2 Power . | . . . . . . . . . . . . . . . . . Propulsion 2 | . . . 1 . . . . . . 1 . . . . . . Utility 8 | . . . 1 . . . 2 . . 1 . . . 2 . 2 Weapon . | . . . . . . . . . . . . . . . . . Parts Attached 159 | 2 6 5 25 7 3 1 15 15 2 18 1 20 7 . 15 17 Power 16 | . . 1 3 1 1 . 1 2 . 2 . 1 2 . 1 1 Engine 11 | . . 1 3 1 1 . 1 1 . 1 . . 1 . . 1 Core 4 | . . . . . . . . 1 . 1 . 1 . . 1 . Reactor 1 | . . . . . . . . . . . . . 1 . . . Propulsion 41 | 2 . 2 8 3 1 . 2 5 1 2 . 6 2 . 1 6 Treads 25 | 2 . . 6 3 1 . 2 5 1 1 . 3 1 . . . Leg 5 | . . . 1 . . . . . . . . . . . 1 3 Wheel 6 | . . 2 . . . . . . . . . 3 1 . . . Hover . | . . . . . . . . . . . . . . . . . Flight 5 | . . . 1 . . . . . . 1 . . . . . 3 Utility 62 | . 3 1 6 2 . . 6 7 1 8 1 8 3 . 10 6 Device 20 | . 1 1 4 1 . . 1 2 . 4 . 5 1 . . . Storage 5 | . 2 . 1 . . . . 1 . 1 . . . . . . Processor 2 | . . . . . . . . . . 1 . 1 . . . . Hackware 25 | . . . . . . . . 3 . 1 1 2 2 . 10 6 Protection 10 | . . . 1 1 . . 5 1 1 1 . . . . . . Artifact . | . . . . . . . . . . . . . . . . . Weapon 40 | . 3 1 8 1 1 1 6 1 . 6 . 5 . . 3 4 Energy Gun 6 | . 2 1 1 . . . 2 . . . . . . . . . Energy Cannon 7 | . . . 3 . . . . . . . . 1 . . 2 1 Ballistic Gun 4 | . . . 2 . . 1 1 . . . . . . . . . Ballistic Cannon 10 | . . . 2 1 . . 1 1 . 2 . 1 . . . 2 Launcher 6 | . . . . . 1 . 2 . . 1 . 1 . . . 1 Special Weapon 2 | . . . . . . . . . . . . 2 . . . . Impact Weapon 1 | . . . . . . . . . . 1 . . . . . . Slashing Weapon 3 | . 1 . . . . . . . . 1 . . . . 1 . Piercing Weapon . | . . . . . . . . . . . . . . . . . Special Melee Weapon 1 | . . . . . . . . . . 1 . . . . . . Unidentified Prototypes 8 | . . . 4 . . . . . . . . 1 . . . 3 Parts Lost 58 | . 2 2 2 2 . . 4 9 6 . . 5 4 . 8 14 Power 9 | . 1 . 1 . . . 1 2 . . . 1 1 . 1 1 Propulsion 15 | . . 2 . 1 . . . 2 1 . . 1 1 . 4 3 Utility 25 | . 1 . 1 1 . . 2 5 3 . . 2 1 . 2 7 Weapon 9 | . . . . . . . 1 . 2 . . 1 1 . 1 3 Highest Loss Streak 7 | . 1 2 2 2 . . 1 3 6 . . 4 2 . 6 7 To Critical Strikes . | . . . . . . . . . . . . . . . . . Average Backups 19 | 6 14 19 24 24 23 20 21 21 22 11 20 19 19 20 15 4 Power . | 1 1 . 1 . . . . . 1 1 1 . . 1 . . Propulsion 4 | 4 4 3 5 7 6 6 7 7 2 2 . . . . . . Utility 6 | . 2 4 3 5 4 4 4 6 16 4 16 16 16 18 13 3 Weapon 6 | 1 5 8 12 10 11 9 8 5 2 2 2 1 1 1 1 1 Tool/Special . | . . . . . . . . . . . . . . . . . Unused Backups 46 | . 4 . 16 . 3 . 1 7 . 5 . . 2 . 3 5 Power 3 | . 1 . . . . . . . . . . . 2 . . . Propulsion 12 | . . . 3 . 2 . . 3 . 4 . . . . . . Utility 14 | . 2 . 1 . . . . 4 . 1 . . . . 3 3 Weapon 16 | . 1 . 12 . 1 . . . . . . . . . . 2 Tool/Special 1 | . . . . . . . 1 . . . . . . . . . Average Slot Usage (%) 86 | . 79 92 97 99 77 100 97 92 99 51 75 77 85 73 70 72 Engine 6 | . 1 14 10 11 11 11 6 4 9 1 . 1 2 . . 2 Core 1 | . . . . . . . . 3 . 5 7 4 2 . . . Treads 21 | . 27 6 28 32 33 33 27 26 27 2 . 6 12 13 4 . Wheel 1 | . . 21 2 . . . . . . . . 4 7 6 3 . Flight 1 | . . . . . . . . . . 6 7 3 . . . 6 Device 9 | . 7 7 17 11 11 11 9 14 11 7 7 5 . . . . Storage 9 | . 14 14 11 11 11 11 9 9 9 5 7 7 7 6 4 . Hackware 9 | . . . . . . . . 1 18 9 22 24 32 33 41 49 Protection 7 | . . . 3 10 11 11 26 13 6 2 . . . . . . Energy Gun 4 | . 27 28 . . . . 6 . . . . . . . . . Energy Cannon 3 | . . . 10 11 . . . . . . . 4 5 . 8 . Ballistic Gun 1 | . . . . . . 6 3 10 . . . . . . . . Ballistic Cannon 5 | . . . 10 11 . 11 6 5 17 . . . . . . . Launcher 1 | . . . . . . 4 1 . . . 7 1 1 6 1 3 Peak Build Rating 78 | 6 10 10 25 23 21 21 32 34 34 65 68 72 60 43 53 78 Average Rating 31 | 6 7 8 20 22 14 21 28 29 33 48 67 55 49 43 41 61 On Entrance 29 | 6 6 7 10 23 19 21 21 31 34 20 62 68 56 43 43 39 Naked Turns . | . . . . . . . . . . . . . . . . . Heaviest Build 109 | 12 45 49 106 106 96 98 109 107 101 94 49 58 66 53 69 10 Greatest Support 66 | 40 40 40 63 66 63 63 66 63 60 60 50 50 56 28 28 26 Greatest Overweight (x) 18 | . 8 4 3 1 1 1 1 1 2 1 . 18 2 1 2 2 Average Overweight (x) . | . . 1 1 1 1 1 1 1 1 . . 1 1 1 . . Largest Inventory Capacity 25 | 8 20 20 25 25 25 25 25 25 25 25 20 20 20 20 20 5 Average Capacity 21 | 8 16 20 24 25 25 25 25 25 25 17 20 20 20 20 16 5 Most Carried 25 | 6 20 20 25 25 25 23 25 25 25 24 20 20 20 20 20 5 Average Carried 20 | 6 14 19 24 24 24 23 24 24 25 12 20 19 19 20 14 4 Final Capacity 25 | 8 20 20 25 25 25 25 25 25 25 20 20 20 20 20 5 5 Final Carried 25 | 6 20 20 25 25 23 23 25 25 25 20 20 20 20 20 5 5 Class Distribution -------------------- 56% | Mutant 22% | Scavenger-Mutant 19% | Hacker-Mutant Dominant Class ---------------- Mutant | -10/Materials Mutant | -10/Mines Mutant | -9/Materials Mutant | -9/Mines Scavenger-Mutant | -9/Exiles Scavenger-Mutant | -8/Mines Mutant | -8/Materials Scavenger-Mutant | -8/Garrison Scavenger-Mutant | -8/Materials Mutant | -7/Factory Hacker-Mutant | -7/Waste Hacker-Mutant | -7/Factory Hacker-Mutant | -7/Garrison Hacker-Mutant | -6/Factory Mutant | -6/DSF Mutant | -5/Factory Resources | -11 -10 -10 -9 -9 -9 -8 -8 -8 -8 -7 -7 -7 -7 -6 -6 -5 ----------- Run | Yrd Mat Min Mat Min Exi Min Mat Gar Mat Fac Was Fac Gar Fac DSF Fac Matter Collected 5606 | 220 90 243 888 380 . 205 505 552 203 435 326 536 92 . 261 670 Remotely . | . . . . . . . . . . . . . . . . . Salvage Created 8467 | . 383 263 1499 505 . 162 1318 781 97 399 970 693 477 . 359 561 Parts 424 | . 20 15 88 23 . 4 74 53 6 22 5 33 19 . 29 33 Haulers Intercepted 14 | . 2 . 6 . . . 3 . . 1 . . . . . 2 Recyclers Shooed 11 | . . . 7 . . . . . . . . 4 . . . . Parts Field Recycled . | . . . . . . . . . . . . . . . . . Retrieved Matter . | . . . . . . . . . . . . . . . . . Parts Self-Destructed . | . . . . . . . . . . . . . . . . . Prevented . | . . . . . . . . . . . . . . . . . Kills | -11 -10 -10 -9 -9 -9 -8 -8 -8 -8 -7 -7 -7 -7 -6 -6 -5 ------- Run | Yrd Mat Min Mat Min Exi Min Mat Gar Mat Fac Was Fac Gar Fac DSF Fac Combat Hostiles Destroyed 171 | . 9 7 28 14 . 7 25 26 3 5 5 6 15 . 8 13 Guns 32 | . 9 6 1 . . . 11 5 . . . . . . . . Cannons 72 | . . . 26 13 . 1 5 6 3 1 . 4 6 . 5 2 AOE 61 | . . . . . . 6 7 15 . 4 5 1 9 . 3 11 Classes Destroyed 18 | . 4 1 4 3 . . 2 . . 1 1 . . . 2 . Worker 9 | . . . 1 . . 2 4 . . 1 . 1 . . . . Builder 6 | . 1 . 1 . . . 2 . . . . 2 . . . . Tunneler 3 | . . 1 . . . 1 . . . . . . . . . 1 Hauler 14 | . 2 . 6 . . . 3 . . 1 . . . . . 2 Recycler 11 | . . . 3 . . . 2 . . 2 . 4 . . . . Operator 9 | . . . . . . . 1 . . 2 . 2 . . . 4 Watcher 3 | . . . 1 . . . . . 1 1 . . . . . . Swarmer 51 | . 3 2 5 . . 4 9 10 . 4 . . 6 . 3 5 Grunt 68 | . 6 5 13 9 . 2 8 12 2 . . 1 5 . 1 4 Brawler 2 | . . . . 1 . 1 . . . . . . . . . . Duelist 3 | . . . . 2 . . . 1 . . . . . . . . Sentry 23 | . . . 10 . . . 6 3 1 . . 2 1 . . . Demolisher 2 | . . . . 2 . . . . . . . . . . . . Specialist 3 | . . . . . . . . . . . . . . . 3 . Hunter 2 | . . . . . . . 2 . . . . . . . . . Programmer 11 | . . . . . . . . . . 1 . 3 3 . . 4 Heavy 1 | . . . . . . . . . . . . . . . 1 . Compactor 5 | . . . . . . . . . . . 5 . . . . . Butcher 1 | . . . . . . . . 1 . . . . . . . . Best Kill Streak 9 | . 4 3 9 3 . 4 5 7 2 5 2 2 6 . 8 7 Combat Bots Only 8 | . 3 3 8 3 . 4 3 7 2 4 2 1 6 . 8 6 Max Kills in Single Turn 5 | . 2 1 1 1 . 2 2 5 1 3 1 1 2 . 2 3 Gunslinging . | . . . . . . . . . . . . . . . . . Exploded 5 | . . . . . . 2 2 5 . 3 1 1 2 . 2 3 Melee . | . . . . . . . . . . . . . . . . . Uniques/NPCs Destroyed . | . . . . . . . . . . . . . . . . . Combat | -11 -10 -10 -9 -9 -9 -8 -8 -8 -8 -7 -7 -7 -7 -6 -6 -5 -------- Run | Yrd Mat Min Mat Min Exi Min Mat Gar Mat Fac Was Fac Gar Fac DSF Fac Hostile Shots Fired 1071 | . 63 40 139 77 . 7 118 92 72 36 . 105 112 . 46 164 Missed 337 | . 16 14 39 22 . 1 31 16 20 15 . 33 45 . 14 71 Hits 734 | . 47 26 100 55 . 6 87 76 52 21 . 72 67 . 32 93 Melee 14 | . . . . 6 . . . 6 2 . . . . . . . Projectile 720 | . 47 26 100 49 . 6 87 70 50 21 . 72 67 . 32 93 AOE 10 | . . . . 10 . . . . . . . . . . . . Critical Strikes 26 | . . 1 . 1 . . 1 7 2 2 . 2 3 . 2 5 Part Disruptions 3 | . . . . . . . . . . . . . . . 3 . Damage Taken 11231 | . 518 233 1033 1081 . 106 1155 1425 837 287 . 947 993 . 725 1891 Core 2415 | . 102 84 99 147 . . 57 97 108 17 . 180 249 . 264 1011 Absorbed by Shields 411 | . . 28 202 . . . . 47 . 4 . . 130 . . . Regen/Repaired (Parts) 502 | . . . 252 . . . 250 . . . . . . . . . Core Remaining (%) 53 | 100 . 25 . . . 38 . . 52 . . . 36 . 68 . Volleys Fired 648 | . 44 20 90 45 . 8 82 57 18 22 33 88 90 . 20 31 Largest 2 | . 2 2 2 2 . 2 2 2 2 1 1 1 1 . 2 2 Hottest 180 | . 100 100 105 105 . 60 90 67 74 40 30 90 90 . 180 141 Shots Fired 985 | . 89 40 162 88 . 13 156 96 33 22 33 89 90 . 36 38 Gun 307 | . 89 40 15 . . 3 110 50 . . . . . . . . Cannon 569 | . . . 147 88 . 5 40 29 33 17 . 78 75 . 32 25 Launcher 102 | . . . . . . 5 6 17 . 5 33 6 13 . 4 13 Special 7 | . . . . . . . . . . . . 5 2 . . . Kinetic 341 | . . . 92 46 . 8 55 79 33 17 . . . . . 11 Thermal 440 | . 89 40 70 42 . . . . . . . 78 75 . 32 14 Explosive 102 | . . . . . . 5 6 17 . 5 33 6 13 . 4 13 Electromagnetic 95 | . . . . . . . 95 . . . . . . . . . Robot Hit Streak 23 | . 23 5 14 16 . 21 17 15 3 2 10 13 10 . 11 11 Robot Miss Streak 7 | . 4 2 4 2 . 2 7 3 3 5 1 3 4 . 2 3 Penetration Max . | . . . . . . . . . . . . . . . . . Secondary Targets 5 | . 2 3 . . . . . . . . . . . . . . Max Gunslinging Chain 1 | . 1 1 . . . . . . . . . . . . . . Shots Hit Robots 625 | . 61 26 101 62 . 8 113 55 17 13 19 46 41 . 24 39 Core Hits 333 | . 23 15 42 19 . 7 63 53 7 10 11 15 25 . 12 31 Critical Kills 4 | . . . 1 1 . . . . . . . 1 . . . 1 Critical Parts Destroyed 4 | . . . . . . . . . . . . . . . . 4 Critical Strikes 26 | . 10 3 1 4 . . 1 . . 1 . 1 . . . 5 Burn 13 | . 10 3 . . . . . . . . . . . . . . Meltdown 3 | . . . 1 1 . . . . . . . 1 . . . . Destroy 5 | . . . . . . . . . . . . . . . . 5 Blast 5 | . . . . 3 . . 1 . . 1 . . . . . . Melee Attacks 118 | . . . . . . . . . . 58 . 26 . . 1 33 Impact 29 | . . . . . . . . . . 29 . . . . . . Slashing 89 | . . . . . . . . . . 29 . 26 . . 1 33 Piercing . | . . . . . . . . . . . . . . . . . Sneak Attacks 12 | . . . . . . . . . . 6 . 3 . . . 3 Combat Hostiles . | . . . . . . . . . . . . . . . . . Follow-up Attacks . | . . . . . . . . . . . . . . . . . Damage Inflicted 22181 | . 821 348 2328 1461 . 509 3067 2199 453 1033 2526 1543 2102 . 885 2906 Guns 3454 | . 805 346 161 . . 26 1485 631 . . . . . . . . Cannons 8244 | . . . 2113 1438 . 72 531 298 442 108 . 972 1179 . 667 424 Explosions 8699 | . . . . . . 347 979 1239 . 341 2526 320 921 . 218 1808 Melee 1509 | . . . . . . . . . . 584 . 251 . . . 674 Ramming 275 | . 16 2 54 23 . 64 72 31 11 . . . 2 . . . Kinetic 4445 | . . . 1389 734 . 98 634 929 442 108 . . . . . 111 Thermal 6532 | . 805 346 885 704 . . 514 . . . . 972 1179 . 667 460 Explosive 8038 | . . . . . . 347 465 1239 . 341 2526 320 921 . 218 1661 Electromagnetic 1382 | . . . . . . . 1382 . . . . . . . . . Impact 136 | . . . . . . . . . . 136 . . . . . . Slashing 1373 | . . . . . . . . . . 448 . 251 . . . 674 Piercing . | . . . . . . . . . . . . . . . . . Highest Corruption 13 | . 3 3 6 6 6 6 . 1 6 . 12 12 6 . 3 13 Average Corruption 4 | . 2 3 5 6 6 6 . 1 1 . 7 5 4 . 2 6 Corruption Purged 15 | . . . . . . . . . . . . 15 . . . . Corruption Blocked . | . . . . . . . . . . . . . . . . . Effects 268 | . 19 6 63 55 16 32 . 4 . . 8 25 25 . 3 12 Message Errors 53 | . 6 1 14 8 3 9 . 1 . . . 4 6 . . 1 Matter Fused 76 | . 7 2 19 13 4 7 . 2 . . 1 9 5 . 1 6 Heat Flow Errors 31 | . 1 1 12 7 2 2 . . . . 2 2 . . . 2 Energy Discharges 32 | . . 1 5 9 1 2 . . . . 1 4 7 . 1 1 Parts Rejected 2 | . . . . 1 . . . . . . . . . . 1 . Parts Fused 7 | . 1 . 3 2 1 . . . . . . . . . . . Data Loss (minor) 36 | . 3 . 6 8 2 8 . . . . 2 3 3 . . 1 Data Loss (major) 12 | . . . 2 2 2 1 . . . . 1 . 3 . . 1 Misfires 9 | . 1 . 2 2 . 2 . 1 . . . 1 . . . . Alerts 7 | . . 1 . 2 1 1 . . . . . 1 1 . . . Misdirections 2 | . . . . . . . . . . . 1 1 . . . . Weapon Failures 1 | . . . . 1 . . . . . . . . . . . . Overload Shots 3 | . . . . . . . . . . . . 2 1 . . . Overflow Damage 742 | . . . 32 19 . 70 81 47 . 118 . 114 50 . 4 207 Projectiles 100 | . . . 31 19 . . . . . . . 17 33 . . . Explosions 389 | . . . . . . 70 81 47 . 5 . 12 17 . 4 153 Melee 253 | . . . 1 . . . . . . 113 . 85 . . . 54 Knockbacks 39 | . . . 16 9 . . 4 4 3 2 . . . . . 1 Impact 1 | . . . . . . . 1 . . . . . . . . . Kinetic 33 | . . . 13 8 . . 2 4 3 2 . . . . . 1 Secondary 5 | . . . 3 1 . . 1 . . . . . . . . . Self-Inflicted Damage 472 | . . . . . . 39 64 301 . . . . 49 . 19 . Shots 12 | . . . . . . 1 2 7 . . . . 1 . 1 . Rammed 34 | . 4 2 6 4 . 5 7 3 2 . . . 1 . . . Targets Rammed 37 | . 4 2 6 4 . 7 8 3 2 . . . 1 . . . Kicked . | . . . . . . . . . . . . . . . . . Crushed 3 | . . . . . . 2 1 . . . . . . . . . Highest Temperature 374 | . 374 274 211 249 176 192 11 8 6 9 191 223 22 . 84 231 Average Temperature 86 | . 147 92 52 97 85 106 3 6 5 9 86 82 12 . 35 92 Received Heat Transfer 3021 | . 237 65 374 246 . 18 342 540 459 96 . 159 128 . 81 276 Effects 4 | . 2 . 1 . . . . . . . . 1 . . . . Shutdowns 1 | . 1 . . . . . . . . . . . . . . . Energy Bleed 2 | . 1 . . . . . . . . . . 1 . . . . Interference 1 | . . . 1 . . . . . . . . . . . . . Siege Activations . | . . . . . . . . . . . . . . . . . Martial Activations . | . . . . . . . . . . . . . . . . . Shielding Activations . | . . . . . . . . . . . . . . . . . Robots Disrupted . | . . . . . . . . . . . . . . . . . Combat Hostiles . | . . . . . . . . . . . . . . . . . Robots Corrupted 3 | . . . 1 . . . 2 . . . . . . . . . Combat Hostiles 2 | . . . . . . . 2 . . . . . . . . . Parts Fried 7 | . . . 1 . . . 6 . . . . . . . . . Impact Corruptions 1 | . . . 1 . . . . . . . . . . . . . Robots Melted 5 | . . 1 1 1 . . . . . . . 2 . . . . Combat Hostiles 4 | . . 1 1 1 . . . . . . . 1 . . . . Parts Melted 22 | . 7 5 2 . . . . . . . . 3 3 . 1 1 Heat Transferred 11686 | . 3071 1221 1591 1221 . . 500 . . . . 1221 1406 . 1009 446 Parts Sabotaged . | . . . . . . . . . . . . . . . . . Parts Stolen . | . . . . . . . . . . . . . . . . . Parts Stripped . | . . . . . . . . . . . . . . . . . Power Chain Reactions 7 | . . . . . . . 7 . . . . . . . . . Alert | -11 -10 -10 -9 -9 -9 -8 -8 -8 -8 -7 -7 -7 -7 -6 -6 -5 ------- Run | Yrd Mat Min Mat Min Exi Min Mat Gar Mat Fac Was Fac Gar Fac DSF Fac Maximum Alert Level 4 | . . . 2 1 . 1 1 4 2 1 . . 3 1 2 3 Low Security (%) 66 | 100 100 100 65 85 . 95 52 4 . 96 100 100 17 . . 51 Level 1 20 | . . . 23 14 . 4 47 13 . 3 . . 55 100 96 28 Level 2 7 | . . . 10 . . . . 24 100 . . . 22 . 3 2 Level 3 4 | . . . . . . . . 44 . . . . 4 . . 16 Level 4 . | . . . . . . . . 12 . . . . . . . . Level 5 . | . . . . . . . . . . . . . . . . . High Security . | . . . . . . . . . . . . . . . . . Max Security . | . . . . . . . . . . . . . . . . . Sterilizations 1 | . . . . . . . . . . . . . . . 1 . Peak Influence 1206 | . 102 70 412 282 . 213 367 1206 606 220 19 124 759 398 400 789 Initial 587 | . . . 16 150 . . . 186 587 220 1 . 67 398 264 210 Average 181 | . 15 28 160 88 . 66 175 738 565 62 6 18 324 388 314 295 Influence Increases 7210 | . 304 241 894 382 . 272 1007 1110 99 285 61 490 732 . 216 1117 Destroy 0b10 Robot/C 3420 | . 180 200 560 280 . 140 500 520 60 100 . 160 300 . 160 260 Destroy 0b10 Robot/NC 305 | . 15 5 60 . . 15 60 . 5 35 . 75 . . . 35 Destroy Leader 678 | . 44 30 184 50 . 20 136 30 22 24 . 64 10 . 20 44 Allied During Kill 35 | . . 6 . . . . . 6 . . . 23 . . . . Successful Hack 225 | . 48 . 41 . . . 58 . . 5 . 45 . . . 28 Select Force Hacks 30 | . . . . . . . . . . . . 30 . . . . Disable Machine 465 | . . . . 30 . 60 90 15 . 45 . 30 90 . 15 90 Anti-Garrison Action 600 | . . . . . . . . 400 . . . . 200 . . . Destroy Structure 762 | . 2 . 19 7 . 37 103 109 12 61 61 48 72 . 21 210 Partial Spotted 30 | . . . 15 . . . . . . 15 . . . . . . Lose Combat Pursuer 660 | . 15 . 15 15 . . 60 30 . . . 15 60 . . 450 Influence Decreases 6457 | . 304 199 549 769 . 272 720 191 819 768 64 393 70 381 194 764 Entered New Map 1946 | . . . 26 237 . . . 101 619 266 2 . 30 361 114 190 Time Decay 3738 | . 284 179 523 512 . 272 530 . 140 492 62 290 . 20 . 434 Lost Part 533 | . 20 20 . 20 . . 40 90 60 . . 23 40 . 80 140 Lost Ally 90 | . . . . . . . . . . 10 . 80 . . . . Purge Threat 150 | . . . . . . . 150 . . . . . . . . . Squads Dispatched 37 | . 2 . 2 . . . 3 . 6 5 . 5 . . 2 12 Investigation 6 | . . . . . . . . . 1 1 . 1 . . . 3 Extermination 9 | . . . . . . . . . . 4 . 2 . . . 3 Reinforcement 22 | . 2 . 2 . . . 3 . 5 . . 2 . . 2 6 Assault . | . . . . . . . . . . . . . . . . . Garrison . | . . . . . . . . . . . . . . . . . Intercept . | . . . . . . . . . . . . . . . . . Searches Triggered . | . . . . . . . . . . . . . . . . . Construction Impeded 2 | . . . . . . . 1 . . . . . . . . 1 Haulers Reinforced 2 | . . . . . . . . . . . . . . . . 2 Active Scanning Responses . | . . . . . . . . . . . . . . . . . Cargo Convoy Interrupts . | . . . . . . . . . . . . . . . . . Stealth | -11 -10 -10 -9 -9 -9 -8 -8 -8 -8 -7 -7 -7 -7 -6 -6 -5 --------- Run | Yrd Mat Min Mat Min Exi Min Mat Gar Mat Fac Was Fac Gar Fac DSF Fac Distress Signals 18 | . 2 . 6 . . . 2 . 1 1 . 3 . . . 3 Communications Jammed . | . . . . . . . . . . . . . . . . . Distress Signals . | . . . . . . . . . . . . . . . . . Times Spotted 308 | . 20 10 51 15 . 7 52 24 11 20 5 22 16 1 8 46 Peak Tracking Total 10 | . 5 3 6 3 . 4 5 8 5 4 3 6 6 1 3 10 Tactical Retreats 27 | . 1 . 1 1 . . 4 2 . 4 . 1 2 . . 11 Traps | -11 -10 -10 -9 -9 -9 -8 -8 -8 -8 -7 -7 -7 -7 -6 -6 -5 ------- Run | Yrd Mat Min Mat Min Exi Min Mat Gar Mat Fac Was Fac Gar Fac DSF Fac Traps Triggered 23 | . 3 . 5 . . . . 3 . 2 . 3 3 . . 4 Indirectly . | . . . . . . . . . . . . . . . . . Trap Hack Attempts 1 | . . . . . . . . . . 1 . . . . . . Triggered . | . . . . . . . . . . . . . . . . . Disarmed . | . . . . . . . . . . . . . . . . . Reprogrammed . | . . . . . . . . . . . . . . . . . Reused . | . . . . . . . . . . . . . . . . . Traps Extracted . | . . . . . . . . . . . . . . . . . Installed . | . . . . . . . . . . . . . . . . . Triggered . | . . . . . . . . . . . . . . . . . Machines | -11 -10 -10 -9 -9 -9 -8 -8 -8 -8 -7 -7 -7 -7 -6 -6 -5 ---------- Run | Yrd Mat Min Mat Min Exi Min Mat Gar Mat Fac Was Fac Gar Fac DSF Fac Machines Disabled 36 | . . . . 2 . 4 6 4 . 3 . 2 8 . 1 6 Max in Single Turn 3 | . . . . 1 . 2 2 1 . 1 . 1 1 . 1 3 Garrison Access 5 | . . . . . . . . . . 2 . 2 . . . 1 Garrison Relay 5 | . . . . . . . . 3 . . . . 2 . . . Machines Repaired . | . . . . . . . . . . . . . . . . . Machines Dismantled . | . . . . . . . . . . . . . . . . . Machines Sabotaged . | . . . . . . . . . . . . . . . . . Overloaded Fab Kills . | . . . . . . . . . . . . . . . . . Hacking | -11 -10 -10 -9 -9 -9 -8 -8 -8 -8 -7 -7 -7 -7 -6 -6 -5 --------- Run | Yrd Mat Min Mat Min Exi Min Mat Gar Mat Fac Was Fac Gar Fac DSF Fac Machines Accessed 77 | . 8 . 13 . 2 . 10 3 . 14 . 14 1 2 . 10 Terminals 52 | . 7 . 10 . . . 7 3 . 8 . 7 1 1 . 8 Fabricators 6 | . . . . . . . . . . 2 . 2 . 1 . 1 Repair Stations 4 | . . . 2 . . . 2 . . . . . . . . . Recycling Units 6 | . 1 . 1 . . . . . . 2 . 2 . . . . Scanalyzers . | . . . . . . . . . . . . . . . . . Garrison Access 7 | . . . . . . . 1 . . 2 . 3 . . . 1 Total Hacks 218 | . 27 . 38 . 2 . 45 7 . 27 . 46 1 3 . 22 Successful 105 | . 11 . 19 . 2 . 27 1 . 11 . 24 . 2 . 8 Failed 113 | . 16 . 19 . . . 18 6 . 16 . 22 1 1 . 14 Catastrophic 23 | . 4 . 2 . . . 1 1 . 6 . 6 1 . . 2 Database Lockouts . | . . . . . . . . . . . . . . . . . Manual 87 | . 16 . 15 . 1 . 15 . . 14 . 17 . . . 9 Terminals 160 | . 26 . 26 . . . 36 7 . 18 . 25 1 2 . 19 Fabricators 12 | . . . . . . . . . . 3 . 7 . 1 . 1 Repair Stations 19 | . . . 11 . . . 8 . . . . . . . . . Recycling Units 10 | . 1 . 1 . . . . . . 3 . 5 . . . . Scanalyzers . | . . . . . . . . . . . . . . . . . Garrison Access 15 | . . . . . . . 1 . . 3 . 9 . . . 2 Terminal Hacks 39 | . 7 . 5 . 2 . 13 1 . 1 . 5 . 1 . 4 Record 1 | . . . . . 1 . . . . . . . . . . . Robot Analysis 4 | . 2 . 1 . . . 1 . . . . . . . . . Prototype ID Bank 4 | . 1 . . . . . 3 . . . . . . . . . Open DSF 2 | . . . . . . . . . . . . . . 1 . 1 Branch Access Points 1 | . . . . . . . 1 . . . . . . . . . Emergency Access Points 1 | . . . . . . . 1 . . . . . . . . . Machine Index 1 | . . . . . . . . . . . . 1 . . . . Garrison Index 1 | . . . . . . . . . . . . . . . . 1 Unreport Threat 1 | . . . . . . . 1 . . . . . . . . . Locate Traps 6 | . 2 . 1 . . . 2 . . . . 1 . . . . Hauler Manifests 4 | . 1 . 1 . . . 1 . . . . 1 . . . . Registered Components 6 | . 1 . 1 . . . 1 . . 1 . 1 . . . 1 Zone Layout 5 | . . . 1 . . . 2 . . . . 1 . . . 1 Garrison Registry 1 | . . . . . . . . 1 . . . . . . . . Proto ID Catalog 1 | . . . . . 1 . . . . . . . . . . . Fabricator Hacks 6 | . . . . . . . . . . 1 . 3 . 1 . 1 Network Status 5 | . . . . . . . . . . 1 . 2 . 1 . 1 Build 1 | . . . . . . . . . . . . 1 . . . . Repair Station Hacks 13 | . . . 8 . . . 5 . . . . . . . . . Scan Component 7 | . . . 4 . . . 3 . . . . . . . . . Repair 6 | . . . 4 . . . 2 . . . . . . . . . Recycling Unit Hacks 5 | . 1 . 1 . . . . . . 1 . 2 . . . . Retrieve Components 5 | . 1 . 1 . . . . . . 1 . 2 . . . . Scanalyzer . | . . . . . . . . . . . . . . . . . Garrison Access Hacks 13 | . . . . . . . 1 . . 3 . 7 . . . 2 Unlock Access 2 | . . . . . . . 1 . . . . 1 . . . . Seal Access 5 | . . . . . . . . . . 2 . 2 . . . 1 Coupler Status 6 | . . . . . . . . . . 1 . 4 . . . 1 Unauthorized Hacks 29 | . 3 . 5 . . . 8 . . 5 . 7 . . . 1 Terminals 23 | . 3 . 5 . . . 8 . . 3 . 3 . . . 1 Assimilate 5 | . . . . . . . . . . 2 . 2 . . . 1 Botnet 2 | . . . . . . . 1 . . . . 1 . . . . Operators 2 | . . . . . . . 1 . . 1 . . . . . . Skim 14 | . 3 . 5 . . . 6 . . . . . . . . . Fabricators 1 | . . . . . . . . . . 1 . . . . . . Haulers 1 | . . . . . . . . . . 1 . . . . . . Repair Stations . | . . . . . . . . . . . . . . . . . Recycling Units 3 | . . . . . . . . . . 1 . 2 . . . . Recyclers 2 | . . . . . . . . . . . . 2 . . . . Mask 1 | . . . . . . . . . . 1 . . . . . . Scanalyzers . | . . . . . . . . . . . . . . . . . Garrison Access 2 | . . . . . . . . . . . . 2 . . . . Restock 1 | . . . . . . . . . . . . 1 . . . . Eject 1 | . . . . . . . . . . . . 1 . . . . Data Cores Recovered 2 | . . . . . . . 1 . . . . 1 . . . . Used . | . . . . . . . . . . . . . . . . . Hacking Detections 60 | . 7 . 12 . . . 9 3 . 10 . 9 1 1 . 8 Full Trace Events 9 | . 1 . . . . . 1 3 . 1 . . . . . 3 Feedback Events 1 | . . . . . . . . 1 . . . . . . . . Corruption 1 | . . . . . . . . 1 . . . . . . . . Feedback Blocked . | . . . . . . . . . . . . . . . . . Robot Schematics Acquired . | . . . . . . . . . . . . . . . . . Robots Built 4 | . . . . . . . . . . . . 4 . . . . Authchips . | . . . . . . . . . . . . . . . . . Time 67 | . . . . . . . . . . . . 67 . . . . Total Robot Build Rating 16 | . . . . . . . . . . . . 16 . . . . Part Schematics Acquired . | . . . . . . . . . . . . . . . . . Parts Built . | . . . . . . . . . . . . . . . . . Authchips . | . . . . . . . . . . . . . . . . . Time . | . . . . . . . . . . . . . . . . . Total Part Build Rating . | . . . . . . . . . . . . . . . . . Parts Repaired 6 | . . . 4 . . . 2 . . . . . . . . . Time 208 | . . . 144 . . . 64 . . . . . . . . . Parts Recycled . | . . . . . . . . . . . . . . . . . Recycled Matter . | . . . . . . . . . . . . . . . . . Retrieved Matter . | . . . . . . . . . . . . . . . . . Retrieved Components 7 | . 3 . 1 . . . . . . . . 3 . . . . Parts Scanalyzed . | . . . . . . . . . . . . . . . . . Part Schematics Acquired . | . . . . . . . . . . . . . . . . . Parts Damaged . | . . . . . . . . . . . . . . . . . Bothacking | -11 -10 -10 -9 -9 -9 -8 -8 -8 -8 -7 -7 -7 -7 -6 -6 -5 ------------ Run | Yrd Mat Min Mat Min Exi Min Mat Gar Mat Fac Was Fac Gar Fac DSF Fac Used RIF Installer 3 | . . . . . . . . 1 . . . . 2 . . . Signal Jammer 1 | . . . . . . . . . . . . . 1 . . . Robot Detection 1 | . . . . . . . . . . . . . 1 . . . Robots Hacked 2 | . . . . . . . . . . . . 1 1 . . . Non-combat . | . . . . . . . . . . . . . . . . . Combat 2 | . . . . . . . . . . . . 1 1 . . . Robot Hacks Applied 2 | . . . . . . . . . . . . 1 1 . . . disrupt_area 1 | . . . . . . . . . . . . . 1 . . . formatsys_high 1 | . . . . . . . . . . . . 1 . . . . Relay Couplers Released 27 | . . . . . . . . 11 . . . 7 9 . . . Ejected 3 | . . . . . . . . . . . . 3 . . . . Machine Destruction 21 | . . . . . . . . 11 . . . 1 9 . . . Programmers 3 | . . . . . . . . . . . . 3 . . . . Attached 6 | . . . . . . . . . . . . 2 2 . 2 . Fabnet Peak Effective % . | . . . . . . . . . . . . . . . . . Robots Rewired . | . . . . . . . . . . . . . . . . . Allies Hacked 1 | . . . . . . . . . . . . 1 . . . . Hacks Repelled . | . . . . . . . . . . . . . . . . . Allies | -11 -10 -10 -9 -9 -9 -8 -8 -8 -8 -7 -7 -7 -7 -6 -6 -5 -------- Run | Yrd Mat Min Mat Min Exi Min Mat Gar Mat Fac Was Fac Gar Fac DSF Fac Total Allies 9 | . . 1 . . . . . 1 . 1 . 6 . . . . Largest Group 5 | . . 1 . . . . . 1 . 1 . 5 . . . . Highest-Rated Group 64 | . . 31 . . . . . 25 . 10 . 64 . . . . Highest-Rated Ally 31 | . . 31 . . . . . 25 . 10 . 16 . . . . Total Orders . | . . . . . . . . . . . . . . . . . Ally Attacks 68 | . . 16 . . . . . . . . . 52 . . . . Total Damage 798 | . . 230 . . . . . . . . . 568 . . . . Kills 12 | . . 3 . . . . . . . . . 9 . . . . Allies Corrupted . | . . . . . . . . . . . . . . . . . Allies Melted . | . . . . . . . . . . . . . . . . . Intel | -11 -10 -10 -9 -9 -9 -8 -8 -8 -8 -7 -7 -7 -7 -6 -6 -5 ------- Run | Yrd Mat Min Mat Min Exi Min Mat Gar Mat Fac Was Fac Gar Fac DSF Fac Active Infowar (turns) 2142 | . . . 497 . . . . . . 820 176 649 . . . . Traps 5 | . . . . . . . . . . 5 . . . . . . Seismic 497 | . . . 497 . . . . . . . . . . . . . Jamming 1009 | . . . . . . . . . . 184 176 649 . . . . ECM 637 | . . . . . . . . . . 637 . . . . . . Robot Analysis Total 4 | . 2 . 1 . . . 1 . . . . . . . . . Derelict Logs Recovered 5 | . . 3 . 2 . . . . . . . . . . . . Drone Launches . | . . . . . . . . . . . . . . . . . Drone Recoveries . | . . . . . . . . . . . . . . . . . Exploration | -11 -10 -10 -9 -9 -9 -8 -8 -8 -8 -7 -7 -7 -7 -6 -6 -5 ------------- Run | Yrd Mat Min Mat Min Exi Min Mat Gar Mat Fac Was Fac Gar Fac DSF Fac Turns Passed 18381 | 13 1540 474 3055 1711 681 1129 2436 1287 282 1611 176 1438 1252 57 178 1061 Spaces Moved 11237 | 7 672 336 1180 648 281 452 840 421 92 2315 218 1153 585 50 95 1892 Core 110 | . 1 . . . . . . . . . . 9 . . 72 28 Treads 4622 | 7 671 34 938 648 281 452 840 421 92 74 . . 164 . . . Legs 1 | . . . . . . . . . . . . . . . 1 . Wheels 1543 | . . 302 242 . . . . . . . . 506 421 50 22 . Hover . | . . . . . . . . . . . . . . . . . Flight 4961 | . . . . . . . . . . 2241 218 638 . . . 1864 Fastest Speed 37 | 160 160 105 105 240 240 240 240 240 243 50 50 50 115 115 50 37 Average Speed 135 | 160 200 118 213 240 240 240 240 241 244 56 50 94 152 115 70 45 Slowest Speed 950 | 160 450 240 320 240 240 240 240 243 325 243 50 950 232 115 260 150 Overloaded Moves . | . . . . . . . . . . . . . . . . . Propulsion Burnouts . | . . . . . . . . . . . . . . . . . Robots Hopped 56 | . . . . . . . . . . 20 . 1 . . . 35 Potential Cave-ins 4 | . . . . . . . . . . 4 . . . . . . Cave-ins Triggered . | . . . . . . . . . . . . . . . . . Exploration Rate (%) 59 | 2 94 89 96 100 69 98 75 64 16 40 95 26 53 3 50 41 Regions Visited 16 Branch Regions 4 Pre-discovered Areas 6 | . . 2 . 1 1 . 2 . . . . . . . . . Known Exits Taken 6 | . . . 1 . . 1 1 . 1 . . 1 . 1 . . Unknown Exits Taken 5 | 1 1 1 . 1 1 . . . . . . . . . . . Scrap Searched 5 | . . 1 . 3 . 1 . . . . . . . . . . Spaces Dug 179 | . . . . 2 . 13 19 37 3 37 . 25 28 . 1 14 Terrain Destroyed 681 | . . . 13 7 . 44 110 92 11 67 116 47 34 . 27 113 Melee 63 | . . . . . . . . . . 37 . 12 . . 1 13 Projectile 88 | . . . 13 7 . 1 14 3 11 13 . 19 1 . . 6 AOE 530 | . . . . . . 43 96 89 . 17 116 16 33 . 26 94 Terrain Rammed . | . . . . . . . . . . . . . . . . . Walls Destroyed . | . . . . . . . . . . . . . . . . . Machines Disabled . | . . . . . . . . . . . . . . . . . Actions | -11 -10 -10 -9 -9 -9 -8 -8 -8 -8 -7 -7 -7 -7 -6 -6 -5 --------- Run | Yrd Mat Min Mat Min Exi Min Mat Gar Mat Fac Was Fac Gar Fac DSF Fac Total 13167 | 8 771 368 1550 709 291 476 1092 594 115 2521 251 1378 853 49 167 1974 Wait 597 | . 23 . 169 . . 9 111 39 . 20 . 56 139 . 23 8 Move 11118 | 6 671 335 1179 647 280 451 840 420 91 2277 217 1151 584 49 94 1826 Hop 50 | . . . . . . . . . . 18 . 1 . . . 31 Pick Up 143 | . 15 5 36 3 1 . 17 21 . 28 . 5 6 . 2 4 Fast Attach 90 | . 6 . 14 2 . . 3 6 1 9 1 20 6 . 6 16 Attach 65 | . . 4 6 2 2 . 4 7 . 10 . 8 4 . 11 7 Detach 38 | . . . 2 1 1 . 1 2 . 9 . 7 3 . 5 7 Swap 86 | 2 3 1 12 5 2 1 15 17 1 14 . 3 5 . 2 3 Drop 146 | . 5 1 36 . 5 . 11 18 2 37 . 13 7 . 3 8 Fire 648 | . 44 20 90 45 . 8 82 57 18 22 33 88 90 . 20 31 Melee 118 | . . . . . . . . . . 58 . 26 . . 1 33 Ram . | . . . . . . . . . . . . . . . . . Kick . | . . . . . . . . . . . . . . . . . Crush 37 | . 4 2 6 4 . 7 8 3 2 . . . 1 . . . Escape Stasis 30 | . . . . . . . . 4 . 18 . . 8 . . . Rewire . | . . . . . . . . . . . . . . . . . Trap 1 | . . . . . . . . . . 1 . . . . . . Miscellaneous . | . . . . . . . . . . . . . . . . . Route ------- -11/Scrapyard -10/Materials (discovered 5 exits: *Mat x3 / [*Min x2]) -10/Mines -9/Materials (discovered 4 exits: *Mat x3 / *Min) -9/Mines (discovered 4 exits: *Mat x2 / *Exi / [*Zio]) -9/Exiles -8/Mines (discovered 2 exits: *Mat x2) -8/Materials (discovered 6 exits: *Fac x3 / *Sto x2 / Gar) -8/Garrison (discovered 3 exits: [*Mat x3]) -8/Materials (discovered 2 exits: *Fac x2) -7/Factory (discovered 3 exits: *Fac x3) -7/Waste -7/Factory (discovered 2 exits: *Fac / Gar) -7/Garrison -6/Factory -6/DSF -5/Factory (discovered 2 exits: [*Fac] / [*Upp]) History --------- Turn | Location | Event 4 | -11/Scrapyard | Discovered new exit (range 2) 14 | -11/Scrapyard | Entered Materials 51 | -10/Materials | Discovered new exit (range 11) 303 | -10/Materials | Build established: Mutant 411 | -10/Materials | Discovered new exit (range 12) 499 | -10/Materials | Discovered new exit (range 16) 661 | -10/Materials | Discovered new exit (range 12) 1215 | -10/Materials | Discovered new exit (range 9) 1554 | -10/Materials | Entered Mines 1568 | -10/Mines | Escorted by a lone wolf Derelict 1588 | -10/Mines | Learned location of Storage (-8) 1658 | -10/Mines | Core integrity fell below 50% 1730 | -10/Mines | Learned Materials stockpile data 1830 | -10/Mines | Learned Materials emergency access door positions 1850 | -10/Mines | Learned location of Mines (-9) 1966 | -10/Mines | A weapon hastily lodged in a ceiling crevice suddenly fell to the ground 2015 | -10/Mines | Discovered new exit (range 10) 2028 | -10/Mines | Entered Materials 2028 | -9/Materials | Evolved 2 slots: Propulsion x1, Utility x1 2707 | -9/Materials | Build established: Scavenger-Mutant 2762 | -9/Materials | Discovered new exit (range 16) 2936 | -9/Materials | Learned Storage security intel 2992 | -9/Materials | Learned Storage interactive machine intel 3021 | -9/Materials | Build established: Mutant 3036 | -9/Materials | Identified exit to Mines 3069 | -9/Materials | Learned 2 Storage zone layouts 3091 | -9/Materials | Loaded intel: 47 machine locations 3104 | -9/Materials | Learned Materials stockpile data 3127 | -9/Materials | Learned Storage stockpile data 3162 | -9/Materials | Identified exit to Materials 3209 | -9/Materials | Learned 4 Recycling zone layouts 3436 | -9/Materials | Repaired Lgt. Treads 4093 | -9/Materials | Destroyed 8 combat bots 4647 | -9/Materials | Repaired Imp. VTOL Module 4680 | -9/Materials | Repaired Med. Armor Plating 4707 | -9/Materials | Repaired Lgt. Treads 5083 | -9/Materials | Entered Mines 5496 | -9/Mines | Learned location of 1 exit from Materials 5640 | -9/Mines | Assembled infested the area 5649 | -9/Mines | Core integrity fell below 50% 5700 | -9/Mines | Discovered exit to Materials (range 5) 5701 | -9/Mines | A Derelict revealed a hidden shortcut to a safe place 6359 | -9/Mines | Discovered new exit (range 5) 6794 | -9/Mines | Entered Exiles 6856 | -9/Exiles | Met 8R-AWN 6897 | -9/Exiles | Met EX-HEX 6988 | -9/Exiles | Met EX-DEC 7029 | -9/Exiles | Learned location of Zion (-7) 7082 | -9/Exiles | Met EX-BIN 7085 | -9/Exiles | Build established: Scavenger-Mutant 7125 | -9/Exiles | Aligned with FarCom system 7127 | -9/Exiles | Given EX-Vault access code 7187 | -9/Exiles | Opened EX-Vault 7209 | -9/Exiles | Found Flying Fortress v7 7279 | -9/Exiles | Warned to stay clear of 0b10 Research branches 7445 | -9/Exiles | Discovered new exit (range 12) 7475 | -9/Exiles | Left Exiles lab with Flying Fortress v7 7475 | -9/Exiles | Entered Mines 7523 | -8/Mines | Discovered exit to Materials (range 5) 7839 | -8/Mines | Discovered exit to Materials (range 13) 8019 | -8/Mines | Found a Scrap Suit stashed away for nefarious purposes 8604 | -8/Mines | Entered Materials 8604 | -8/Materials | Evolved 2 slots: Utility x2 8605 | -8/Materials | Identified exit to Factory 8668 | -8/Materials | Repaired Lgt. Treads 8707 | -8/Materials | Repaired Assault Cannon 8917 | -8/Materials | Discovered new exit (range 16) 9730 | -8/Materials | Discovered new exit (range 7) 9933 | -8/Materials | Build established: Mutant 10381 | -8/Materials | Identified exit to Storage 10457 | -8/Materials | Learned location of 2 exits from Factory 10790 | -8/Materials | Learned 4 Recycling zone layouts 10812 | -8/Materials | Learned location of 1 exit from Extension 10842 | -8/Materials | Learned 4 Factory zone layouts 10931 | -8/Materials | Learned location of Extension (-5) 11040 | -8/Materials | Identified exit to Garrison 11040 | -8/Materials | Entered Garrison 11138 | -8/Garrison | Triggered checkpoint 11173 | -8/Garrison | Garrison Relay disabled 11254 | -8/Garrison | Triggered checkpoint 11297 | -8/Garrison | Destroyed 7 combat bots 11335 | -8/Garrison | Lost 3 parts (1p2u) 11405 | -8/Garrison | Discovered new exit (range 12) 11554 | -8/Garrison | Triggered checkpoint 11587 | -8/Garrison | Discovered new exit (range 75) 11587 | -8/Garrison | Discovered new exit (range 18) 11587 | -8/Garrison | Discovered new exit (range 80) 11631 | -8/Garrison | Garrison Relay disabled 11984 | -8/Garrison | Installed Relay Interface Framework 12060 | -8/Garrison | Rescued a captive Derelict 12096 | -8/Garrison | Triggered checkpoint 12131 | -8/Garrison | Garrison Relay disabled 12191 | -8/Garrison | Build established: Scavenger-Mutant 12327 | -8/Garrison | Entered Materials 12609 | -8/Materials | Entered Factory 12609 | -7/Factory | Evolved 2 slots: Propulsion x1, Utility x1 12610 | -7/Factory | Identified exit to Factory 12636 | -7/Factory | Lost 6 parts (1n3u2w) 12916 | -7/Factory | Build established: Mutant 13001 | -7/Factory | Discovered exit to Factory (range 16) 13954 | -7/Factory | Build established: Hacker-Mutant 14220 | -7/Factory | Manually triggered Chute Trap 14220 | -7/Factory | Sucked down chute 14220 | -7/Factory | Entered Waste 14225 | -7/Waste | Spotted C-40 Crusher 14235 | -7/Waste | EMP discharged 14240 | -7/Waste | Spotted C-40 Crusher 14244 | -7/Waste | Spotted C-40 Crusher 14246 | -7/Waste | Spotted C-40 Crusher 14264 | -7/Waste | Destroyed C-40 Crusher 14288 | -7/Waste | Destroyed C-40 Crusher 14292 | -7/Waste | Spotted C-40 Crusher 14301 | -7/Waste | Destroyed C-40 Crusher 14334 | -7/Waste | Destroyed C-40 Crusher 14335 | -7/Waste | EMP discharged 14335 | -7/Waste | System corruption reached 10% 14354 | -7/Waste | Destroyed C-40 Crusher 14373 | -7/Waste | Spotted C-40 Crusher 14391 | -7/Waste | Discovered new exit (range 12) 14396 | -7/Waste | Entered Factory 14855 | -7/Factory | Discovered exit to Factory (range 8) 15222 | -7/Factory | Lost 4 parts (1p2u1w) 15681 | -7/Factory | Fabricated S-27 Virus? 15834 | -7/Factory | Identified exit to Garrison 15834 | -7/Factory | Entered Garrison 15855 | -7/Garrison | Lost 3 allies 15866 | -7/Garrison | Expanded RIF knowledge: Signal Jamming 16002 | -7/Garrison | Triggered checkpoint 16052 | -7/Garrison | Garrison Relay disabled 16309 | -7/Garrison | Expanded RIF knowledge: Robot Detection 16453 | -7/Garrison | Triggered checkpoint 16682 | -7/Garrison | Discovered exit to Factory (range 10) 16746 | -7/Garrison | Triggered checkpoint 16750 | -7/Garrison | Core integrity fell below 50% 16813 | -7/Garrison | Garrison Relay disabled 16941 | -7/Garrison | Triggered checkpoint 17086 | -7/Garrison | Entered Factory 17086 | -6/Factory | Evolved 2 slots: Utility x2 17142 | -6/Factory | Identified exit to DSF 17143 | -6/Factory | Entered DSF 17169 | -6/DSF | Additional patrols routed to DSF 17272 | -6/DSF | Lost 6 parts (1p2n2u1w) 17281 | -6/DSF | Sterilization system engaged 17282 | -6/DSF | Discovered new exit (range 16) 17292 | -6/DSF | Destroyed 8 combat bots 17301 | -6/DSF | Ambient heat levels rising (+10) 17316 | -6/DSF | Ambient heat levels rising (+10) 17321 | -6/DSF | Entered Factory 17321 | -5/Factory | Evolved 2 slots: Utility x2 17547 | -5/Factory | Build established: Mutant 17868 | -5/Factory | Discovered new exit (range 5) 17875 | -5/Factory | Discovered new exit (range 15) 18043 | -5/Factory | Lost 7 parts (1p4u2w) 18323 | -5/Factory | Core integrity fell below 50% 18375 | -5/Factory | System corruption reached 10% 18376 | -5/Factory | Core integrity fell below 20% 18382 | -5/Factory | Destroyed by G-50 Soldier with Heavy Laser Last Messages --------------- 18329_ Acquired 146 matter. 18332_ Triggered Fusion Bomb Trap. 18332_ An explosion rips through the floor. 18332_ Nuclear Pulse Array destroyed. 18332_ T-07 Excavator destroyed. 18347_ Nuclear Pulse Array destroyed. 18350_ Acquired Field Propulsion Drive. 18365_ K-01 Serf collects debris. 18366_ U-05 Engineer lays Concrete. 18368_ O-24 Administrator destroyed. 18368_ U-05 Engineer builds a Wall. 18369_ System corrupted: Substantial component data lost. 18369_ Field Propulsion Drive destroyed. 18369_ K-01 Serf collects debris. 18374_ System Shield destroyed. 18376_ Acquired Hacking Suite. 18377_ K-01 Serf collects debris. 18377_ Acquired 22 matter. 18381_ Hacking Suite destroyed. 18381_ K-01 Serf collects debris. Map ----- +----------------------------------------------------+ | ^ # """"" # #??????????# | | # """"" # #??????????# | | # """ # #??????????# | | # # #??????????# | | # # #??????????# | | ########### ##### # #??????????##########+# | | ??????????# #???# # #########??????# | | ??????????# #???# "T" # #] !#??????# """" | | ??????????# #???#######+## # """ #??????# """" | | ??????????# #?????????# # """ #??????# """" | | ??????????# #?????????# + """ !#??????# """" | | ??????????# #?????????# # #??????# ! | | ??????????# ########### ################ """" | | ??????????# b + """" | | ??????????# ######### T###### ##### """" | | ??????????# #???????######### "" #???# """" | | ??????????# #????????# """ # "" #???# | | ??????????# #????????# """ # T" #???# | | ###########w########## """ # ""p #???######## | | + # " #?? ### | | ##### #### ! !# # """ ## | | #???# #??# # p # """ ##! | | #???# #??######## !!! # "S !## | | #???# ################## g!k # """ ## | | ????# ######## # !!!* # "" ##" | | ????# # #??"" """@/ = # ##" | | ????#### # ""#??"" """ # ^ # ##" | | ???????# # ]] T"#??"" """ # ]! ; #?" | | ######?# # ][ ""#?? ## ] # ## | | #?# # #? ! = !## g#####+ # | | ### # ! #?########## gg % | | """ # # #??????????# | | | """ + / """"#??????????# p | | """ # # """"#??????????###########+## # | | # # """"#?????????????????# # | | # # """"#?????????????????# "" # | | # # """"??????????????????# """ """" !# | | ###### # """"??????????????????# """# """" # | | #????# # ??????????????????# """# """" # | | ###### #### ##??????????????????# * ""# """" # | | # #???##???????????????????# ""# """" # | | # #????????????????????????# # """" # | | # #????????????????????????# ""?# # | | # #????????????????????????# ???# """" # | | ! # #????????????????????????# ???# """" " | | # #????????????????????]???# ????# """" # | | # #????????????????????????# ????# """" # | | # ?????????????????????????# ?????# """" # | | ??????????????????????????????????# """" ]# | | # ?????????????????????????????????# """" # | +----------------------------------------------------+ Best States ------------- Heat Dissipation 67 Energy Generation 21 Energy Capacity 280 Matter Stores 387 Matter Capacity 450 Sight Range 16 Terrain Scan Density 10 ECM Strength 1 Jamming Range 12 Armor Coverage 525 Evasion (%) 62 Targeting Accuracy 8 Recoil Reduction 3 Offensive Hacking 20 Defensive Hacking 24 Relay Coupler Types 2 Relay Coupler Value 100 Authchip Count 16 Item Schematics ----------------- None Robot Schematics ------------------ None Fabricated ------------ S-27 Virus | x4 | -7/Factory | Preloaded Repaired ---------- Lgt. Treads | 29% | -9/Materials Imp. VTOL Module | 48% | -9/Materials Med. Armor Plating | 51% | -9/Materials Lgt. Treads | 50% | -9/Materials Lgt. Treads | 17% | -8/Materials Assault Cannon | 10% | -8/Materials Alien Tech Used ----------------- None Achievements -------------- None Challenges ------------ None Game ------ Seed BattleTransmissionModule Manual? 0 Play Time 03:13:16 Cumulative 486.7 hours Start 2025.06.27 @ 18:22:54 End 2025.06.28 @ 17:48:26 Sessions 7 Manual Loads 0 Difficulty Rogue Special Mode None Game No. 218 Rogue 218 Adventurer 0 Explorer 0 Win Type - Total 22 Types 6/4/6/2/1/0/1/1/0/1 Lore% 89 Gallery% 85 Achievement% 80 Wizard Run 0 Options --------- Layout 0 ASCII 0 Keyboard 0 Movement Arrows Keybinds 0 Fullscreen 2 Font 18/SmallcapsGlow Map View 76x50 Zoom Use 0% Tactical HUD 1 Map Filters NONE Filters NONE Steam 1 RUN: c9cd501a-9fd5-4333-966a-a8b38da9e4ab